fUST/lending_fUST_20250920
["ID","MTS","AMOUNT","RATE_DAILY","PERIOD"]
[386499192,1758322247174,-210.0,0.0002786,19]
[386499193,1758322247183,-500.0,0.00027876,2]
[386499194,1758322247192,-500.0,0.00027895,2]
[386499195,1758322247202,-699.32,0.00027898,15]
[386499196,1758322247211,-152.0,0.000279,120]
[386499197,1758322247219,-250.0,0.00027945,5]
[386499198,1758322247228,-500.0,0.00027955,2]
[386499199,1758322247237,-500.0,0.00027978,2]
[386499200,1758322247247,-500.0,0.0002798,2]
[386499201,1758322247256,-500.0,0.0002798,2]
[386499202,1758322247265,-699.32,0.00027998,15]
[386499203,1758322247274,-800.0,0.00028,2]
[386499204,1758322247283,-1055.04,0.00028,2]
[386499205,1758322247292,-500.0,0.00028053,2]
[386499206,1758322247302,-500.0,0.00028075,2]
[386499207,1758322247311,-699.32,0.00028098,15]
[386499208,1758322247321,-500.0,0.00028105,2]
[386499209,1758322247330,-320.0,0.00028129,2]
[386499210,1758322247340,-1055.04,0.0002814,2]
[386499211,1758322247350,-500.0,0.00028142,2]
[386499212,1758322247359,-800.0,0.00028195,2]
[386499213,1758322247368,-699.32,0.00028198,15]
[386499214,1758322247377,-600.0,0.00028222,2]
[386499215,1758322247387,-500.0,0.00028231,2]
[386499216,1758322247396,-500.0,0.00028254,2]
[386499217,1758322247406,-500.0,0.00028254,2]
[386499218,1758322247415,-1055.04,0.0002828,2]
[386499219,1758322247424,-500.0,0.00028285,2]
[386499220,1758322247433,-699.32,0.00028298,15]
[386499221,1758322247443,-800.0,0.00028339,2]
[386499222,1758322247452,-5000.0,0.00028361,15]
[386499223,1758322247461,-5000.0,0.00028361,19]
[386499224,1758322247471,-5000.0,0.00028361,15]
[386499225,1758322247480,-5000.0,0.00028361,14]
[386499226,1758322247490,-5000.0,0.00028361,20]
[386499227,1758322247500,-800.0,0.00028366,2]
[386499228,1758322247510,-500.0,0.00028367,2]
[386499229,1758322247520,-800.0,0.00028371,2]
[386499230,1758322247529,-699.32,0.00028398,15]
[386499231,1758322247539,-500.0,0.00028412,2]
[386499232,1758322247549,-800.0,0.00028413,2]
[386499233,1758322247559,-1055.04,0.0002842,2]
[386499234,1758322247569,-350.0,0.00028493,5]
[386499235,1758322247578,-699.32,0.00028498,15]
[386499236,1758322247587,-2550.6,0.000285,7]
[386499237,1758322247598,-482.81133343,0.00028502,2]
[386499238,1758322247607,-898.93599219,0.00028516,2]
[386499239,1758322247616,-500.0,0.00028528,2]
[386499240,1758322247627,-500.0,0.00028528,2]
[386499241,1758322247637,-500.0,0.00028531,2]
[386499242,1758322247646,-1055.04,0.0002856,2]
[386499243,1758322247661,-500.0,0.00028576,7]
[386499244,1758322247670,-500.4444083,0.00028592,2]
[386499245,1758322247679,-699.32,0.00028598,15]
[386499246,1758322247690,-977.0,0.00028614,2]
[386499247,1758322247699,-2158.0,0.00028614,2]
[386499248,1758322247710,-634.0,0.00028614,2]
[386499249,1758322247720,-500.0,0.00028624,2]
[386499250,1758322247729,-800.0,0.00028629,2]
[386499251,1758322247739,-500.0,0.00028667,2]
[386499252,1758322247749,-699.32,0.00028698,15]
[386499253,1758322247759,-1055.04,0.000287,2]
[386499254,1758322247769,-200.0,0.00028705,120]
[386499255,1758322247784,-500.0,0.00028705,2]
[386499256,1758322247818,-699.32,0.00028798,15]
[386499257,1758322247828,-500.0,0.00028802,2]
[386499258,1758322247839,-500.0,0.00028802,2]
[386499259,1758322247849,-800.0,0.00028813,2]
[386499260,1758322247859,-1055.04,0.0002884,2]
[386499261,1758322247868,-500.0,0.00028879,2]
[386499262,1758322247878,-699.32,0.00028898,15]
[386499263,1758322247887,-800.0,0.00028932,2]
[386499264,1758322247897,-500.0,0.00028966,2]
[386499265,1758322247906,-1055.04,0.0002898,2]
[386499266,1758322247916,-500.0,0.00028989,2]
[386499267,1758322247927,-800.0,0.00028992,2]
[386499268,1758322247937,-699.32,0.00028998,15]
[386499269,1758322247947,-500.0,0.00029011,2]
[386499270,1758322247956,-500.0,0.00029014,2]
[386499271,1758322247966,-500.0,0.00029017,2]
[386499272,1758322247976,-450.0,0.00029041,5]
[386499273,1758322247986,-166.35424728,0.00029041,120]
[386499274,1758322247995,-500.0,0.00029042,2]
[386499275,1758322248004,-500.0,0.00029076,2]
[386499276,1758322248014,-547.72309064,0.00029076,2]
[386499277,1758322248025,-699.32,0.00029098,15]
[386499278,1758322248035,-800.0,0.00029108,2]
[386499279,1758322248045,-500.0,0.00029118,2]
[386499280,1758322248057,-1055.04,0.0002912,30]
[386499281,1758322248068,-500.0,0.00029122,2]
[386499282,1758322248078,-500.0,0.00029166,2]
[386499283,1758322248087,-699.32,0.00029198,15]
[386499284,1758322248097,-800.0,0.00029204,2]
[386499285,1758322248106,-1164.86558335,0.0002924,2]
[386499286,1758322248115,-6111.81689471,0.00029255,2]
[386499287,1758322248125,-1055.04,0.0002926,30]
[386499288,1758322248134,-699.32,0.00029298,15]
[386499289,1758322248143,-2000.0,0.000293,2]
[386499290,1758322248153,-2000.0,0.000293,2]
[386499291,1758322248162,-250.0,0.000293,10]
[386499292,1758322248171,-204.831726,0.000293,2]
[386499293,1758322248180,-500.0,0.00029312,2]
[386499294,1758322248189,-1292.0,0.00029347,30]
[386499295,1758322248199,-161.0,0.0002935,2]
[386499296,1758322248208,-2368.89283335,0.00029355,2]
[386499297,1758322248217,-1037469.74034415,0.00029355,20]
[386499310,1758322248401,-1243.43897475,0.00029355,20]
[386499311,1758322248430,-480.0,0.000211,2]
[386499312,1758322248440,-160.0,0.000211,2]
[386499313,1758322248450,-480.0,0.00021374,2]
[386499314,1758322248459,-1811.78029441,0.00029355,20]
[386499315,1758322248471,-2273.1296175,0.00029355,20]
[386499316,1758322248482,-2317.47957707,0.00029355,20]
[386499317,1758322248524,-480.0,0.00021101,2]
[386499318,1758322248534,-480.0,0.00021648,2]
[386499319,1758322248543,-480.0,0.00021922,2]
[386499320,1758322248552,-406.20467565,0.00022196,2]
[386499321,1758322248565,-73.79532435,0.00022196,2]
[386499322,1758322248574,-250.86035078,0.0002247,2]
[386499323,1758322248585,-229.13964922,0.0002247,2]
[386499324,1758322248595,-93.20467565,0.00029355,20]
[386499325,1758322248610,-480.0,0.00021375,2]
[386499326,1758322248619,-50390.14011298,0.00029355,20]
[386499327,1758322248630,-69512.04320047,0.00029355,20]
[386499328,1758322248642,-29055.24914912,0.00029355,20]
[386499333,1758322394669,-300.0,0.00021099,2]
[386499334,1758322394700,-414.66,0.000211,2]
[386499335,1758322394734,-480.0,0.000211,2]
[386499336,1758322394763,-480.0,0.000211,2]
[386499337,1758322394796,-480.0,0.000211,2]
[386499338,1758322394828,-480.0,0.000211,2]
[386499339,1758322394860,-885.04,0.000211,2]
[386499340,1758322394886,-480.0,0.000211,2]
[386499341,1758322394915,-480.0,0.000211,2]
[386499342,1758322394946,-480.0,0.000211,2]
[386499343,1758322395210,-160.0,0.000211,2]
[386499344,1758322395241,-480.0,0.000211,2]
[386499345,1758322395270,-480.0,0.000211,2]
[386499346,1758322395299,-480.0,0.000211,2]
[386499347,1758322395329,-480.0,0.000211,2]
[386499348,1758322395356,-480.0,0.000211,2]
[386499349,1758322395387,-565.66,0.000211,2]
[386499350,1758322395415,-480.0,0.000211,2]
[386499351,1758322395443,-561.46387333,0.000211,2]
[386499352,1758322395472,-480.0,0.000211,2]
[386499355,1758322422643,-268.05217531,0.00021002,2]
[386499356,1758322432634,-9868.34016331,0.000211,2]
[386499357,1758322432798,-10000.01,0.000211,2]
[386499358,1758322432962,-4832.3060122,0.000211,2]
[386499359,1758322432998,-335.3979756,0.000211,2]
[386499360,1758322469638,155.0,0.00024,120]
[386499361,1758322471077,155.0,0.000261,120]
[386499362,1758322492729,-144.7020244,0.000211,2]
[386499363,1758322492760,-1595.92,0.000211,2]
[386499364,1758322492789,-480.0,0.000211,2]
[386499365,1758322492819,-480.0,0.000211,2]
[386499366,1758322492847,-480.0,0.000211,2]
[386499367,1758322492878,-480.0,0.000211,2]
[386499368,1758322492908,-480.0,0.000211,2]
[386499369,1758322492938,-577.78,0.000211,2]
[386499370,1758322492970,-83.2059512,0.000211,2]
[386499371,1758322493057,-396.7940488,0.000211,2]
[386499372,1758322493086,-480.0,0.000211,2]
[386499373,1758322493115,-480.0,0.000211,2]
[386499374,1758322493146,-480.0,0.000211,2]
[386499375,1758322493175,-480.0,0.000211,2]
[386499376,1758322493205,-480.0,0.000211,2]
[386499377,1758322493234,-393.05,0.000211,2]
[386499378,1758322493263,-480.0,0.000211,2]
[386499379,1758322493294,-480.0,0.000211,2]
[386499380,1758322493323,-500.0,0.000211,2]
[386499381,1758322493352,-200.3219024,0.000211,2]
[386499382,1758322493626,-216.4721464,0.000211,2]
[386499383,1758322493641,-83.2059512,0.000211,2]
[386499384,1758322493650,-416.7940488,0.000211,2]
[386499385,1758322502739,-300.0,0.00021099,2]
[386499386,1758322502769,-300.0,0.00021099,2]
[386499387,1758322502801,-83.2059512,0.000211,2]
[386499388,1758322502832,-500.0,0.000211,2]
[386499389,1758322502861,-500.0,0.000211,2]
[386499390,1758322502889,-500.0,0.000211,2]
[386499391,1758322502919,-500.0,0.000211,2]
[386499392,1758322502951,-500.0,0.000211,2]
[386499393,1758322502984,-500.0,0.000211,2]
[386499394,1758322503013,-500.0,0.000211,2]
[386499395,1758322503044,-500.0,0.000211,2]
[386499396,1758322503079,-175.81651018,0.000211,2]
[386499397,1758322503274,-281.96507724,0.000211,2]
[386499400,1758322539902,-500.0,0.000211,2]
[386499401,1758322539935,-591.25248475,0.000211,2]
[386499402,1758322539964,-455.10660998,0.000211,2]
[386499403,1758322540002,-278.09681991,0.000211,2]
[386499404,1758322540035,-500.0,0.000211,2]
[386499405,1758322540065,-500.0,0.000211,2]
[386499406,1758322540095,-616.78376251,0.000211,2]
[386499407,1758322540131,-500.0,0.000211,2]
[386499408,1758322540267,-500.0,0.000211,2]
[386499409,1758322540297,-500.0,0.000211,2]
[386499410,1758322540478,-117.5306457,0.000211,2]
[386499412,1758322566628,-300.0,0.00021099,2]
[386499413,1758322566660,-153.44589993,0.000211,2]
[386499414,1758322566689,-500.0,0.000211,2]
[386499415,1758322566719,-500.0,0.000211,2]
[386499416,1758322566750,-480.0,0.000211,2]
[386499417,1758322566781,-480.0,0.000211,2]
[386499418,1758322566811,-480.0,0.000211,2]
[386499419,1758322566842,-480.0,0.000211,2]
[386499420,1758322566873,-480.0,0.000211,2]
[386499421,1758322566902,-480.0,0.000211,2]
[386499422,1758322566932,-588.93,0.000211,2]
[386499423,1758322567193,-155.25820014,0.000211,2]
[386499424,1758322597876,-217.56631332,0.00021099,2]
[386499425,1758322597914,-252.33072729,0.00021099,2]
[386499426,1758322597947,-346.30930695,0.00021099,2]
[386499427,1758322597976,-217.23406778,0.00021099,2]
[386499428,1758322598015,-176.80583164,0.00021099,2]
[386499429,1758322598052,-324.74179986,0.000211,2]
[386499430,1758322598083,-480.0,0.000211,2]
[386499431,1758322598115,-480.0,0.000211,2]
[386499432,1758322598145,-480.0,0.000211,2]
[386499433,1758322598174,-480.0,0.000211,2]
[386499434,1758322598220,-480.0,0.000211,2]
[386499435,1758322598256,-480.0,0.000211,2]
[386499436,1758322598297,-572.28,0.000211,2]
[386499437,1758322598578,-25.47390632,0.000211,2]
[386499440,1758322655073,-300.0,0.00021099,2]
[386499441,1758322655101,-1200.0,0.00021099,2]
[386499442,1758322655130,-454.52609368,0.000211,2]
[386499443,1758322655160,-316.46230659,0.000211,2]
[386499444,1758322655189,-480.0,0.000211,2]
[386499445,1758322655217,-480.0,0.000211,2]
[386499446,1758322655246,-480.0,0.000211,2]
[386499447,1758322655276,-480.0,0.000211,2]
[386499448,1758322655310,-480.0,0.000211,2]
[386499449,1758322655340,-178.03319946,0.000211,2]
[386499450,1758322655489,-301.96680054,0.000211,2]
[386499451,1758322670112,205.28258865,0.000199,2]
[386499452,1758322675062,-1017.04,0.000211,2]
[386499453,1758322675094,-480.0,0.000211,2]
[386499454,1758322675124,-480.0,0.000211,2]
[386499455,1758322675154,-480.0,0.000211,2]
[386499456,1758322675185,-480.0,0.000211,2]
[386499457,1758322675214,-480.0,0.000211,2]
[386499458,1758322675245,-480.0,0.000211,2]
[386499459,1758322675279,-598.49,0.000211,2]
[386499460,1758322675313,-480.0,0.000211,2]
[386499463,1758322783215,-480.0,0.000211,2]
[386499464,1758322783247,-480.0,0.000211,2]
[386499465,1758322783281,-1745.97,0.000211,2]
[386499466,1758322783313,-480.0,0.000211,2]
[386499467,1758322783345,-480.0,0.000211,2]
[386499468,1758322783376,-480.0,0.000211,2]
[386499469,1758322783408,-480.0,0.000211,2]
[386499470,1758322783439,-268.07,0.000211,2]
[386499471,1758322783587,-55.59741135,0.000211,2]
[386499476,1758322803252,-300.0,0.00021099,2]
[386499477,1758322803285,-300.0,0.00021099,2]
[386499478,1758322803318,-300.0,0.00021099,2]
[386499479,1758322803349,-300.0,0.00021099,2]
[386499480,1758322803380,-300.0,0.00021099,2]
[386499481,1758322803412,-156.33258865,0.000211,2]
[386499482,1758322803444,-480.0,0.000211,2]
[386499483,1758322803474,-425.69552133,0.000211,2]
[386499484,1758322803505,-326.95,0.000211,2]
[386499485,1758322803536,-439.05,0.000211,2]
[386499486,1758322803566,-480.0,0.000211,2]
[386499487,1758322803600,-480.0,0.000211,2]
[386499488,1758322803632,-518.22,0.000211,2]
[386499489,1758322803868,-387.51378004,0.000211,2]
[386499494,1758322883334,-480.0,0.00021099,2]
[386499495,1758322883366,-654.0,0.00021099,2]
[386499496,1758322883397,-480.0,0.00021099,2]
[386499497,1758322883427,-480.0,0.00021099,2]
[386499498,1758322883457,-393.70988658,0.00021099,2]
[386499499,1758322883489,-300.0,0.00021099,2]
[386499500,1758322883520,-480.0,0.00021099,2]
[386499501,1758322883553,-480.0,0.00021099,2]
[386499502,1758322883583,-165.24318553,0.00021099,2]
[386499503,1758322883733,-92.48621996,0.000211,2]
[386499504,1758322883763,-480.0,0.000211,2]
[386499505,1758322883793,-480.0,0.000211,2]
[386499506,1758322884051,-69.13141586,0.000211,2]
[386499508,1758322927197,-480.0,0.00021099,2]
[386499509,1758322927227,-480.0,0.00021099,2]
[386499510,1758322927258,-480.0,0.00021099,2]
[386499511,1758322927288,-480.0,0.00021099,2]
[386499512,1758322927322,-300.0,0.00021099,2]
[386499513,1758322927352,-410.86858414,0.000211,2]
[386499514,1758322927384,-480.0,0.000211,2]
[386499515,1758322927415,-480.0,0.000211,2]
[386499516,1758322927446,-480.0,0.000211,2]
[386499517,1758322927481,-480.0,0.000211,2]
[386499518,1758322927511,-416.39283172,0.000211,2]
[386499519,1758322927695,-65.48716828,0.000211,2]
[386499525,1758322975527,-815.1,0.00021099,2]
[386499526,1758322975556,-480.0,0.000211,2]
[386499527,1758322975588,-480.0,0.000211,2]
[386499528,1758322975740,-480.0,0.000211,2]
[386499529,1758322975771,-480.0,0.000211,2]
[386499530,1758322975801,-614.49,0.000211,2]
[386499531,1758322975830,-294.92875363,0.000211,2]
[386499532,1758322975860,-480.0,0.000211,2]
[386499533,1758322975889,-480.0,0.000211,2]
[386499534,1758322975920,-310.97249274,0.000211,2]
[386499535,1758322975995,-169.02750726,0.000211,2]
[386499536,1758322976024,-480.0,0.000211,2]
[386499537,1758322976053,-480.0,0.000211,2]
[386499538,1758322976086,-480.0,0.000211,2]
[386499539,1758322976117,-487.62,0.000211,2]
[386499540,1758322976147,-480.0,0.000211,2]
[386499541,1758322976178,-480.0,0.000211,2]
[386499542,1758322976208,-319.20721234,0.000211,2]
[386499543,1758322976242,-480.0,0.000211,2]
[386499544,1758322976271,-507.81,0.000211,2]
[386499545,1758322976301,-480.0,0.000211,2]
[386499546,1758322976697,-204.45750726,0.000211,2]
[386499547,1758322976712,-275.54249274,0.000211,2]
[386499548,1758322976722,-37.13806806,0.000211,2]
[386499554,1758323075677,-300.0,0.00021098,2]
[386499555,1758323075717,-480.0,0.00021099,2]
[386499556,1758323075749,-483.85,0.00021099,2]
[386499557,1758323075781,-480.0,0.00021099,2]
[386499558,1758323075812,-602.97,0.00021099,2]
[386499559,1758323075842,-581.09,0.00021099,2]
[386499560,1758323075872,-480.0,0.00021099,2]
[386499561,1758323075901,-480.0,0.00021099,2]
[386499562,1758323075932,-480.0,0.00021099,2]
[386499563,1758323075962,-480.0,0.00021099,2]
[386499564,1758323076069,-442.86193194,0.000211,2]
[386499565,1758323076107,-718.18,0.000211,2]
[386499566,1758323076140,-480.0,0.000211,2]
[386499567,1758323076284,-480.0,0.000211,2]
[386499568,1758323076318,-480.0,0.000211,2]
[386499569,1758323076351,-480.0,0.000211,2]
[386499570,1758323076380,-480.0,0.000211,2]
[386499571,1758323076409,-480.0,0.000211,2]
[386499572,1758323076442,-480.0,0.000211,2]
[386499573,1758323076472,-477.92613612,0.000211,2]
[386499574,1758323076789,-343.40193194,0.00021099,2]
[386499590,1758323123488,177.957671,0.00020127,2]
[386499603,1758323163787,-160.0,0.00021098,2]
[386499604,1758323163818,-300.0,0.00021098,2]
[386499605,1758323163848,-300.0,0.00021098,2]
[386499606,1758323163878,-136.59806806,0.00021099,2]
[386499607,1758323163910,-1043.47,0.00021099,2]
[386499608,1758323163940,-480.0,0.00021099,2]
[386499609,1758323163971,-480.0,0.00021099,2]
[386499610,1758323164002,-542.71,0.00021099,2]
[386499611,1758323164154,-547.58,0.00021099,2]
[386499612,1758323164185,-480.0,0.00021099,2]
[386499613,1758323164216,-467.81386388,0.00021099,2]
[386499614,1758323164410,-123.66613612,0.00021099,2]
[386499615,1758323164441,-480.0,0.00021099,2]
[386499616,1758323164471,-480.0,0.00021099,2]
[386499617,1758323164502,-480.0,0.00021099,2]
[386499618,1758323164531,-480.0,0.00021099,2]
[386499619,1758323164564,-480.0,0.00021099,2]
[386499620,1758323164594,-2.07386388,0.000211,2]
[386499621,1758323164628,-2079.43,0.000211,2]
[386499622,1758323164807,-789.67,0.000211,2]
[386499626,1758323236121,-542.59103633,0.00021005,2]
[386499627,1758323246004,-177.14217963,0.00021005,2]
[386499628,1758323246035,-300.0,0.00021098,2]
[386499629,1758323246065,-1200.0,0.00021098,2]
[386499630,1758323246095,-439.22485853,0.00021099,2]
[386499631,1758323246125,-480.0,0.00021099,2]
[386499632,1758323246155,-480.0,0.00021099,2]
[386499633,1758323246184,-480.0,0.00021099,2]
[386499634,1758323246217,-853.61,0.00021099,2]
[386499635,1758323246249,-480.0,0.00021099,2]
[386499636,1758323246279,-54.02592368,0.00021099,2]
[386499637,1758323246385,-112.00407632,0.00021099,2]
[386499638,1758323246416,-480.0,0.00021099,2]
[386499639,1758323246450,-1039.42,0.00021099,2]
[386499640,1758323246483,-625.32,0.00021099,2]
[386499641,1758323246514,-537.44,0.00021099,2]
[386499642,1758323246546,-480.0,0.00021099,2]
[386499643,1758323246580,-466.11,0.00021099,2]
[386499644,1758323246614,-606.64,0.00021099,2]
[386499645,1758323246646,-480.0,0.00021099,2]
[386499646,1758323247111,-112.00407632,0.000211,2]
[386499647,1758323247126,-346.14184736,0.000211,2]
[386499649,1758323302786,178.316018,0.00020132,2]
[386499650,1758323369336,-300.0,0.00021098,2]
[386499651,1758323369368,-480.0,0.00021099,2]
[386499652,1758323369400,-480.0,0.00021099,2]
[386499653,1758323369431,-480.0,0.00021099,2]
[386499654,1758323369462,-188.73,0.00021099,2]
[386499655,1758323369491,-480.0,0.00021099,2]
[386499656,1758323369522,-418.66,0.00021099,2]
[386499657,1758323369556,-480.0,0.00021099,2]
[386499658,1758323369587,-480.0,0.00021099,2]
[386499659,1758323369620,-480.0,0.00021099,2]
[386499660,1758323369655,-575.41,0.00021099,2]
[386499661,1758323369703,-480.0,0.00021099,2]
[386499662,1758323369733,-520.87,0.00021099,2]
[386499663,1758323369763,-480.0,0.00021099,2]
[386499664,1758323369792,-480.0,0.00021099,2]
[386499665,1758323369822,-220.52,0.00021099,2]
[386499666,1758323369852,-273.14388589,0.00021099,2]
[386499667,1758323369883,-524.76,0.00021099,2]
[386499668,1758323369913,-515.05,0.00021099,2]
[386499669,1758323369942,-340.64065777,0.00021099,2]
[386499670,1758323369971,-480.0,0.00021099,2]
[386499671,1758323370001,-441.75,0.00021099,2]
[386499672,1758323370479,-256.773982,0.00021099,2]
[386499673,1758323370494,-486.54091268,0.00021099,2]
[386499736,1758323432132,-189.0,0.00021098,2]
[386499738,1758323432142,-128.19510532,0.00021099,2]
[386499740,1758323432151,-480.0,0.00021099,2]
[386499742,1758323432161,-480.0,0.00021099,2]
[386499744,1758323432172,-480.0,0.00021099,2]
[386499746,1758323432183,-292.66,0.00021099,2]
[386499748,1758323432192,-480.0,0.00021099,2]
[386499750,1758323432204,-480.0,0.00021099,2]
[386499752,1758323432213,-519.41,0.00021099,2]
[386499754,1758323432223,-480.0,0.00021099,2]
[386499756,1758323432232,-584.16520968,0.00021099,2]
[386499758,1758323432241,-480.0,0.00021099,2]
[386499760,1758323432251,-480.0,0.000211,2]
[386499761,1758323432260,-480.0,0.000211,2]
[386499763,1758323432269,-480.0,0.000211,2]
[386499765,1758323432279,-480.0,0.000211,2]
[386499767,1758323432288,-480.0,0.000211,2]
[386499769,1758323432297,-480.0,0.000211,2]
[386499771,1758323432307,-480.0,0.000211,2]
[386499773,1758323432316,-480.0,0.000211,2]
[386499775,1758323432326,-480.0,0.000211,2]
[386499777,1758323432336,-480.0,0.000211,2]
[386499778,1758323432346,-480.0,0.000211,2]
[386499780,1758323432356,-480.0,0.000211,2]
[386499782,1758323432366,-480.0,0.000211,2]
[386499783,1758323432375,-480.0,0.000211,2]
[386499785,1758323432385,-480.0,0.000211,2]
[386499787,1758323432395,-480.0,0.000211,2]
[386499789,1758323432405,-480.0,0.000211,2]
[386499791,1758323432415,-480.0,0.000211,2]
[386499793,1758323432425,-480.0,0.000211,2]
[386499795,1758323432434,-480.0,0.000211,2]
[386499797,1758323432444,-2201.78,0.000211,2]
[386499799,1758323432453,-480.0,0.000211,2]
[386499801,1758323432462,-1140.89475573,0.000211,2]
[386499803,1758323432475,-1615.16188935,0.000211,2]
[386499805,1758323432486,-386.37513093,0.000211,2]
[386499807,1758323432498,-466.53666222,0.000211,2]
[386499809,1758323432511,-6416.8869708,0.000211,2]
[386499811,1758323432520,-1558.988,0.00021101,20]
[386499813,1758323432530,-480.0,0.00021101,2]
[386499815,1758323432539,-701.93,0.00021101,2]
[386499817,1758323432549,-3269.32,0.00021101,2]
[386499818,1758323432560,-480.0,0.00021101,2]
[386499820,1758323432569,-656.00347453,0.00021105,2]
[386499822,1758323432579,-956.69,0.00021105,2]
[386499824,1758323432589,-226.56197698,0.00021105,2]
[386499826,1758323432600,-480.0,0.00021105,2]
[386499828,1758323432609,-281.5333127,0.00021106,2]
[386499830,1758323432618,-480.0,0.00021106,2]
[386499832,1758323432627,-480.0,0.00021106,2]
[386499834,1758323432638,-480.0,0.00021106,2]
[386499836,1758323432647,-18440.09659247,0.00021274,2]
[386499838,1758323432657,-480.0,0.00021373,2]
[386499839,1758323432667,-480.0,0.00021373,2]
[386499841,1758323432676,-480.0,0.00021373,2]
[386499843,1758323432686,-596.95,0.00021373,2]
[386499845,1758323432698,-480.0,0.00021373,2]
[386499847,1758323432710,-480.0,0.00021373,2]
[386499849,1758323432722,-480.0,0.00021373,2]
[386499851,1758323432734,-853.61,0.00021373,2]
[386499853,1758323432745,-480.0,0.00021373,2]
[386499855,1758323432754,-480.0,0.00021373,2]
[386499857,1758323432764,-1039.42,0.00021373,2]
[386499859,1758323432774,-625.32,0.00021373,2]
[386499861,1758323432784,-480.0,0.00021373,2]
[386499862,1758323432794,-606.64,0.00021373,2]
[386499864,1758323432804,-480.0,0.00021373,2]
[386499866,1758323432813,-480.0,0.00021373,2]
[386499868,1758323432823,-480.0,0.00021373,2]
[386499870,1758323432834,-480.0,0.00021373,2]
[386499872,1758323432844,-480.0,0.00021373,2]
[386499874,1758323432854,-480.0,0.00021373,2]
[386499876,1758323432864,-480.0,0.00021373,2]
[386499878,1758323432873,-480.0,0.00021373,2]
[386499880,1758323432883,-480.0,0.00021373,2]
[386499881,1758323432892,-524.76,0.00021373,2]
[386499883,1758323432901,-515.05,0.00021373,2]
[386499885,1758323432911,-480.0,0.00021373,2]
[386499887,1758323432920,-871.51,0.00021373,2]
[386499889,1758323432930,-480.0,0.00021373,2]
[386499891,1758323432939,-418.69,0.00021373,2]
[386499893,1758323432948,-480.0,0.00021373,2]
[386499895,1758323432958,-480.0,0.00021373,2]
[386499897,1758323432967,-487.62,0.00021373,2]
[386499899,1758323432977,-519.41,0.00021373,2]
[386499900,1758323432988,-480.0,0.00021373,2]
[386499903,1758323432999,-589.97060372,0.00021373,2]
[386499904,1758323433008,-480.0,0.00021374,2]
[386499906,1758323433018,-480.0,0.00021374,2]
[386499908,1758323433028,-480.0,0.00021374,2]
[386499910,1758323433038,-480.0,0.00021374,2]
[386499912,1758323433049,-480.0,0.00021374,2]